bitfinex-derivatives/quotes_SOLF0:USTF0_20241103
["timestamp","ask_amount","ask_price","bid_price","bid_amount"]
[1730623211151,3.0605,163.43,163.42,6.57751362]
[1730623213545,3.0601,163.45,163.42,9.63811362]
[1730623213752,6.0201,163.45,163.44,6.57751362]
[1730623214461,3.0601,163.45,163.44,6.57751362]
[1730623214946,6.02,163.46,163.44,6.57751362]
[1730623215152,3.06,163.46,163.45,6.57751362]
[1730623219153,3.0595,163.48,163.45,6.57751362]
[1730623219349,6.57751362,163.55,163.47,6.57751362]
[1730623219653,2.96,163.54,163.49,6.57751362]
[1730623219846,3.0593,163.49,163.47,6.57751362]
[1730623224561,6.0192,163.5,163.47,9.63721362]
[1730623224957,6.0192,163.5,163.49,6.57751362]
[1730623225164,2.96,163.52,163.49,6.57751362]
[1730623225363,2.96,163.52,163.51,6.57751362]
[1730623225779,6.0189,163.52,163.51,6.57751362]
[1730623229776,6.0189,163.52,163.49,6.57751362]
[1730623229777,3.0589,163.51,163.49,6.57751362]
[1730623239173,3.0595,163.49,163.48,6.57751362]
[1730623239766,2.96,163.53,163.48,6.57751362]
[1730623239967,3.0592,163.5,163.49,6.57751362]
[1730623240272,2.96,163.53,163.49,6.57751362]
[1730623240474,3.0591,163.51,163.49,6.57751362]
[1730623249070,3.0591,163.51,163.5,6.57751362]
[1730623249471,2.96,163.53,163.5,6.57751362]
[1730623249680,6.0185,163.54,163.52,6.57751362]
[1730623250587,3.0586,163.53,163.52,6.57751362]
[1730623252377,6.57751362,163.59,163.52,6.57751362]
[1730623252579,2.96,163.58,163.54,6.57751362]
[1730623253978,3.0582,163.56,163.54,6.57751362]
[1730623254784,3.0582,163.55,163.54,6.57751362]
[1730623254983,2.96,163.58,163.54,6.57751362]
[1730623255386,3.0581,163.56,163.54,6.57751362]
[1730623255583,2.96,163.58,163.54,6.57751362]
[1730623256589,3.0582,163.55,163.54,6.57751362]
[1730623257287,2.96,163.58,163.54,6.57751362]
[1730623258491,3.0581,163.56,163.54,6.57751362]
[1730623259087,2.96,163.58,163.54,6.57751362]
[1730623259285,3.0584,163.54,163.53,6.57751362]
[1730623259487,3.0584,163.54,163.51,6.57751362]
[1730623260679,9.53751362,163.58,163.51,6.57751362]
[1730623260887,6.57751362,163.56,163.49,6.57751362]
[1730623261281,7.85661362,163.56,163.49,6.57751362]
[1730623262891,3.0589,163.52,163.49,6.57751362]
[1730623263195,6.0189,163.52,163.49,6.57751362]
[1730623263490,6.0189,163.52,163.49,9.63681362]
[1730623264796,2.96,163.52,163.51,6.57751362]
[1730623266804,2.96,163.52,163.49,6.57751362]
[1730623267296,3.0591,163.51,163.49,6.57751362]
[1730623268286,2.96,163.52,163.43,1.3626]
[1730623268487,2.96,163.52,163.48,6.57751362]
[1730623269096,3.0593,163.49,163.48,6.57751362]
[1730623269304,2.96,163.52,163.46,6.57751362]
[1730623269305,9.53751362,163.52,163.46,6.57751362]
[1730623269590,3.0598,163.47,163.45,6.57751362]
[1730623270289,2.96,163.48,163.45,6.57751362]
[1730623270490,9.53751362,163.48,163.42,6.57751362]
[1730623270692,6.57751362,163.46,163.4,6.57751362]
[1730623270894,6.57751362,163.44,163.38,6.57751362]
[1730623271194,2.96,163.43,163.4,6.57751362]
[1730623272398,3.0608,163.42,163.4,6.57751362]
[1730623273091,2.96,163.43,163.41,6.57751362]
[1730623282607,3.0604,163.44,163.41,6.57751362]
[1730623283995,66.51397965,163.48,163.41,6.57751362]
[1730623284298,66.51397965,163.48,163.43,6.57751362]
[1730623284299,59.93646603,163.48,163.43,6.57751362]
[1730623284606,62.89646603,163.48,163.45,6.57751362]
[1730623285001,65.95606603,163.48,163.45,6.57751362]
[1730623285999,65.95606603,163.48,163.46,6.57751362]
[1730623286203,6.0196,163.48,163.46,6.57751362]
[1730623287610,3.0597,163.47,163.46,6.57751362]
[1730623290416,2.96,163.48,163.46,6.57751362]
[1730623290712,6.0196,163.48,163.46,6.57751362]
[1730623293202,2.96,163.48,163.46,6.57751362]
[1730623293399,2.96,163.48,163.47,6.57751362]
[1730623295605,6.57751362,163.56,163.47,6.57751362]
[1730623295912,6.57751362,163.56,163.5,6.57751362]
[1730623295913,2.96,163.55,163.5,6.57751362]
[1730623296405,2.96,163.55,163.42,2.642]
[1730623296406,2.96,163.55,163.49,6.57751362]
[1730623297512,3.0588,163.52,163.49,6.57751362]
[1730623298408,3.0592,163.5,163.47,9.63711362]
[1730623298608,2.96,163.51,163.47,9.63711362]
[1730623298609,2.96,163.51,163.47,6.57751362]
[1730623298801,9.53751362,163.51,163.46,6.57751362]
[1730623299006,3.0592,163.5,163.46,6.57751362]
[1730623299211,9.53751362,163.51,163.46,6.57751362]
[1730623300418,3.0596,163.48,163.46,6.57751362]
[1730623304606,3.0592,163.5,163.46,6.57751362]
[1730623304922,9.53751362,163.51,163.46,6.57751362]
[1730623305115,3.06,163.46,163.44,6.57751362]
[1730623311126,2.96,163.47,163.45,6.57751362]
[1730623311419,2.96,163.47,163.45,9.63751362]
[1730623320616,2.96,163.47,163.45,6.57751362]
[1730623320814,2.96,163.5,163.45,6.57751362]
[1730623321028,6.57751362,163.54,163.47,6.57751362]
[1730623321229,2.96,163.53,163.47,6.57751362]
[1730623321426,6.57751362,163.52,163.46,6.57751362]
[1730623321628,2.96,163.53,163.39,6.57751362]
[1730623321629,6.57751362,163.47,163.39,6.57751362]
[1730623321819,6.57751362,163.45,163.38,6.57751362]
[1730623322016,3.0606,163.43,163.38,6.57751362]
[1730623322917,2.96,163.42,163.38,6.57751362]
[1730623323128,3.0608,163.41,163.38,6.57751362]
[1730623325429,2.96,163.42,163.38,6.57751362]
[1730623325734,2.96,163.42,163.38,9.63881362]
[1730623327029,6.0206,163.42,163.38,9.63881362]
[1730623327636,3.061,163.41,163.38,6.57751362]
[1730623327938,3.061,163.41,163.36,9.63911362]
[1730623329047,2.96,163.42,163.36,9.63911362]
[1730623329247,3.061,163.4,163.36,9.63911362]
[1730623330150,3.0616,163.38,163.35,6.57751362]
[1730623332052,3.0617,163.36,163.33,6.57751362]
[1730623333451,3.0617,163.36,163.33,9.63981362]
[1730623335060,3.0617,163.36,163.33,6.57751362]
[1730623335355,3.0621,163.35,163.33,6.57751362]
[1730623335657,9.53751362,163.38,163.31,6.57751362]
[1730623335855,6.57751362,163.35,163.28,6.57751362]
[1730623336061,3.0627,163.32,163.28,6.57751362]
[1730623336557,2.96,163.34,163.28,6.57751362]
[1730623336757,6.57751362,163.33,163.27,6.57751362]
[1730623337148,6.57751362,163.33,163.23,34.1455882]
[1730623337149,6.57751362,163.3,163.24,6.57751362]
[1730623337354,9.53751362,163.3,163.24,6.57751362]
[1730623337656,3.0634,163.28,163.24,9.64141362]
[1730623338754,3.0637,163.26,163.24,6.57751362]
[1730623340049,9.53751362,163.3,163.24,6.57751362]
[1730623340249,3.0634,163.28,163.24,9.64151362]
[1730623340550,2.96,163.3,163.26,6.57751362]
[1730623340961,1.3077,163.32,163.27,6.57751362]
[1730623341151,2.96,163.31,163.27,6.57751362]
[1730623341649,2.96,163.31,163.27,9.64091362]
[1730623342649,6.0229,163.31,163.27,9.64091362]
[1730623342849,2.96,163.31,163.27,9.64091362]
[1730623344256,3.0629,163.3,163.27,9.64091362]
[1730623344456,3.0629,163.3,163.27,6.57751362]
[1730623345059,3.0629,163.3,163.26,9.64101362]
[1730623345565,2.96,163.31,163.26,6.57751362]
[1730623345752,6.57751362,163.3,163.25,3.0637]
[1730623346766,3.0632,163.29,163.25,3.0637]
[1730623347362,6.0228,163.31,163.27,9.64091362]
[1730623347557,2.96,163.31,163.27,9.64091362]
[1730623347955,3.063,163.3,163.27,6.57751362]
[1730623348157,3.063,163.3,163.26,9.64101362]
[1730623350669,3.0628,163.31,163.29,6.57751362]
[1730623350869,7.85121362,163.39,163.3,6.57751362]
[1730623351064,7.85121362,163.39,163.32,6.57751362]
[1730623351376,6.57751362,163.37,163.31,6.57751362]
[1730623351662,3.28,163.36,163.31,6.57751362]
[1730623352261,3.0621,163.35,163.31,6.57751362]
[1730623356170,3.0621,163.35,163.31,9.64011362]
[1730623356463,3.28,163.37,163.34,6.57751362]
[1730623357057,3.0618,163.36,163.34,6.57751362]
[1730623357462,3.28,163.37,163.33,6.57751362]
[1730623357862,3.0619,163.36,163.33,6.57751362]
[1730623358365,3.28,163.37,163.33,6.57751362]
[1730623358673,3.062,163.35,163.33,6.57751362]
[1730623359864,3.28,163.37,163.33,6.57751362]
[1730623360165,3.0618,163.36,163.33,6.57751362]
[1730623361666,6.3416,163.37,163.33,9.63971362]
[1730623361876,6.3416,163.37,163.34,6.57751362]
[1730623363668,3.0618,163.36,163.34,6.57751362]
[1730623366369,3.0619,163.36,163.33,6.57751362]
[1730623366563,3.28,163.37,163.33,6.57751362]
[1730623367369,3.0618,163.36,163.33,6.57751362]
[1730623369187,3.062,163.35,163.33,6.57751362]
[1730623372488,9.85751362,163.37,163.32,6.57751362]
[1730623372678,9.85751362,163.37,163.25,1.3633]
[1730623372679,9.85751362,163.37,163.3,6.57751362]
[1730623373277,3.062,163.35,163.32,6.57751362]
[1730623374282,3.062,163.35,163.31,3.0626]
[1730623374283,3.28,163.37,163.33,6.57751362]
[1730623374993,3.0618,163.36,163.33,9.63971362]
[1730623375398,3.0618,163.36,163.33,6.57751362]
[1730623376082,3.0621,163.35,163.33,6.57751362]
[1730623377183,3.0621,163.34,163.32,6.57751362]
[1730623378802,3.0621,163.34,163.31,3.0627]
[1730623378803,6.3416,163.37,163.33,9.63971362]
[1730623379294,3.0618,163.36,163.33,9.63971362]
[1730623384504,3.0618,163.36,163.35,6.57751362]
[1730623385817,6.57751362,163.4,163.35,6.57751362]
[1730623385818,3.061,163.4,163.35,9.63931362]
[1730623386003,3.1,163.39,163.35,6.57751362]
[1730623386405,6.57751362,163.36,163.26,6.57751362]
[1730623386597,3.1,163.39,163.26,6.57751362]
[1730623386598,6.57751362,163.31,163.26,6.57751362]
[1730623386896,6.57751362,163.31,163.18,1.335]
[1730623386897,6.57751362,163.31,163.25,6.57751362]
[1730623388300,10.49751362,163.32,163.26,6.57751362]
[1730623388812,3.0629,163.31,163.26,6.57751362]
[1730623389911,3.063,163.3,163.26,6.57751362]
[1730623390301,3.92,163.32,163.28,6.57751362]
[1730623390498,3.92,163.34,163.3,6.57751362]
[1730623390701,3.92,163.35,163.31,6.57751362]
[1730623391111,3.92,163.35,163.33,6.57751362]
[1730623391308,3.92,163.35,163.2,35.50937126]
[1730623391309,3.92,163.39,163.34,6.57751362]
[1730623391803,10.49751362,163.39,163.33,6.57751362]
[1730623393404,3.0616,163.37,163.33,6.57751362]
[1730623393804,3.0619,163.36,163.32,6.57751362]
[1730623395711,3.0619,163.36,163.34,6.57751362]
[1730623398114,3.0619,163.36,163.32,6.57751362]
[1730623400018,3.0614,163.38,163.34,9.63951362]
[1730623400910,6.57751362,163.48,163.37,6.57751362]
[1730623401102,6.57751362,163.5,163.43,6.57751362]
[1730623401503,6.57751362,163.5,163.44,6.57751362]
[1730623401702,6.57751362,163.5,163.42,6.57751362]
[1730623402316,6.57751362,163.48,163.42,6.57751362]
[1730623403622,3.0602,163.45,163.4,3.061]
[1730623405111,1.275,163.49,163.4,3.061]
[1730623405719,1.275,163.49,163.39,10.2872695]
[1730623405928,11.5622695,163.49,163.38,1.3396]
[1730623406616,11.5622695,163.49,163.39,3.0612]
[1730623406819,11.5622695,163.49,163.38,1.3396]
[1730623407210,1.275,163.49,163.4,3.061]
[1730623407825,1.275,163.49,163.39,10.2872695]
[1730623408025,1.275,163.49,163.41,3.0607]
[1730623408622,3.06,163.46,163.41,3.0607]
[1730623408818,1.275,163.49,163.44,3.0601]
[1730623409122,3.0597,163.48,163.41,10.2872695]
[1730623409617,3.0597,163.47,163.43,3.0604]
[1730623416532,3.0599,163.46,163.43,3.0604]
[1730623418928,1.275,163.49,163.41,10.2872695]
[1730623419125,3.0604,163.44,163.4,3.0609]
[1730623420940,3.0604,163.44,163.39,10.2872695]
[1730623421233,3.0604,163.44,163.41,3.0608]
[1730623422739,3.0605,163.43,163.4,3.061]
[1730623424043,1.275,163.49,163.39,10.2872695]
[1730623424436,11.5622695,163.49,163.38,1.3396]
[1730623424636,3.0606,163.43,163.39,3.0611]
[1730623425640,11.5622695,163.49,163.39,3.0611]
[1730623425641,3.0606,163.42,163.41,6.58492373]
[1730623429546,6.58492373,163.47,163.41,6.58492373]
[1730623429749,1.275,163.49,163.42,6.58492373]
[1730623429750,3.0603,163.44,163.42,6.58492373]
[1730623432944,3.0602,163.45,163.42,6.58492373]
[1730623433143,1.275,163.49,163.43,6.58492373]
[1730623433346,1.275,163.49,163.45,6.58492373]
[1730623433546,3.0591,163.5,163.45,6.58492373]
[1730623433860,6.58492373,163.52,163.45,6.58492373]
[1730623434548,3.0597,163.47,163.45,6.58492373]
[1730623435751,10.48872373,163.53,163.46,6.58492373]
[1730623435949,10.48872373,163.53,163.48,6.58492373]
[1730623436252,6.58492373,163.6,163.52,6.58492373]
[1730623436440,3.0582,163.56,163.52,6.58492373]
[1730623436637,6.58492373,163.6,163.52,6.58492373]
[1730623436836,7.86432373,163.6,163.52,6.58492373]
[1730623437041,3.0582,163.56,163.52,6.58492373]
[1730623437451,3.0584,163.54,163.52,6.58492373]
[1730623437650,6.58492373,163.58,163.52,6.58492373]
[1730623438054,3.058,163.57,163.52,6.58492373]
[1730623438258,6.58492373,163.58,163.52,6.58492373]
[1730623438947,3.0581,163.56,163.52,6.58492373]
[1730623440158,6.58492373,163.58,163.52,6.58492373]
[1730623440455,3.0582,163.55,163.52,6.58492373]
[1730623441359,3.0586,163.53,163.5,6.58492373]
[1730623443360,3.0586,163.53,163.5,9.64392373]
[1730623444351,3.0586,163.53,163.51,6.58492373]
[1730623446154,3.0584,163.55,163.52,3.0587]
[1730623446360,3.0584,163.55,163.53,6.58492373]
[1730623447359,6.58492373,163.59,163.53,9.64332373]
[1730623447966,6.58492373,163.59,163.53,6.58492373]
[1730623448262,3.0579,163.57,163.54,3.0584]
[1730623448451,1.2794,163.6,163.55,6.58492373]
[1730623448651,1.2591,163.61,163.56,6.58492373]
[1730623448856,3.0578,163.58,163.56,6.58492373]
[1730623451671,3.0574,163.6,163.56,6.58492373]
[1730623453367,3.0574,163.6,163.57,3.0578]
[1730623454565,6.58492373,163.64,163.58,6.58492373]
[1730623454767,6.58492373,163.64,163.58,9.64242373]
[1730623457067,3.0571,163.62,163.58,9.64242373]
[1730623461067,3.0571,163.62,163.6,6.58492373]
[1730623461272,3.0568,163.63,163.6,6.58492373]
[1730623463155,3.0569,163.62,163.6,6.58492373]
[1730623464357,3.0569,163.62,163.59,3.0574]
[1730623464358,6.58492373,163.63,163.56,6.58492373]
[1730623465066,6.58492373,163.63,163.57,3.0578]
[1730623465566,3.0573,163.6,163.57,3.0578]
[1730623467366,3.0577,163.58,163.56,6.58492373]
[1730623468178,3.0577,163.58,163.56,9.64292373]
[1730623469671,6.58492373,163.63,163.56,9.64292373]
[1730623469859,3.0575,163.59,163.56,9.64292373]
[1730623474882,6.58492373,163.63,163.56,9.64292373]
[1730623475669,6.58492373,163.63,163.56,6.58492373]
[1730623476574,6.58492373,163.63,163.56,9.64292373]
[1730623477165,3.0574,163.6,163.56,9.64292373]
[1730623479167,6.58492373,163.63,163.56,9.64292373]
[1730623481279,3.0574,163.6,163.56,9.64292373]
[1730623485281,3.0574,163.6,163.57,3.0577]
[1730623487985,3.0574,163.6,163.58,9.64252373]
[1730623488279,69.04668222,163.65,163.59,6.58492373]
[1730623488485,3.0571,163.61,163.59,6.58492373]
[1730623489286,3.0571,163.61,163.59,9.64232373]
[1730623490577,3.0569,163.62,163.59,9.64232373]
[1730623491083,3.0569,163.62,163.59,6.58492373]
[1730623491286,3.0569,163.62,163.6,3.0572]
[1730623493989,59.87495849,163.65,163.59,6.58492373]
[1730623494292,59.87495849,163.65,163.61,6.58492373]
[1730623495395,3.0567,163.63,163.61,6.58492373]
[1730623495596,3.0567,163.63,163.61,9.64192373]
[1730623495891,59.87495849,163.65,163.61,6.58492373]
[1730623496194,59.87495849,163.65,163.62,6.58492373]
[1730623496895,59.87495849,163.65,163.63,3.0566]
[1730623498192,6.58492373,163.69,163.64,6.58492373]
[1730623498396,3.056,163.67,163.64,9.64132373]
[1730623502677,3.0561,163.67,163.64,9.64142373]
[1730623502877,6.58492373,163.69,163.64,9.64142373]
[1730623503306,6.0259,163.7,163.64,9.64142373]
[1730623503902,4.6983,163.7,163.65,3.0563]
[1730623504484,4.6983,163.7,163.66,9.64102373]
[1730623505381,3.0557,163.69,163.66,6.58492373]
[1730623506797,3.0558,163.68,163.66,6.58492373]
[1730623507502,3.0559,163.68,163.66,6.58492373]
[1730623507799,11.28322373,163.7,163.64,9.64132373]
[1730623508699,3.0559,163.68,163.64,9.64132373]
[1730623509399,11.28322373,163.7,163.64,9.64132373]
[1730623509600,3.056,163.67,163.64,9.64132373]
[1730623514791,3.056,163.67,163.64,3.0564]
[1730623515004,3.056,163.67,163.65,6.58492373]
[1730623516102,3.0561,163.66,163.65,6.58492373]
[1730623516307,3.0561,163.66,163.64,6.58492373]
[1730623517409,3.056,163.67,163.64,6.58492373]
[1730623518008,3.0561,163.66,163.64,9.64142373]
[1730623520100,11.28322373,163.7,163.64,9.64142373]
[1730623521409,3.0562,163.66,163.64,9.64142373]
[1730623522111,3.0562,163.66,163.64,6.58492373]
[1730623522315,3.0563,163.65,163.64,6.58492373]
[1730623522521,6.58492373,163.68,163.62,6.58492373]
[1730623523117,3.0561,163.67,163.62,6.58492373]
[1730623523417,6.58492373,163.68,163.62,9.64182373]
[1730623523917,3.0565,163.64,163.62,6.58492373]
[1730623524120,4.6983,163.7,163.6,35.42454573]
[1730623524121,6.58492373,163.67,163.61,6.58492373]
[1730623524319,7.89382373,163.67,163.61,6.58492373]
[1730623524523,1.3882,163.66,163.61,6.58492373]
[1730623525332,3.0569,163.62,163.61,6.58492373]
[1730623525929,3.0572,163.61,163.59,6.58492373]
[1730623526225,6.58492373,163.64,163.59,6.58492373]
[1730623526425,3.0575,163.59,163.57,6.58492373]
[1730623526723,6.58492373,163.63,163.57,6.58492373]
[1730623527124,3.0574,163.6,163.57,6.58492373]
[1730623529825,3.057,163.62,163.59,6.58492373]
[1730623530017,3.057,163.62,163.6,6.58492373]
[1730623530817,3.0568,163.63,163.6,6.58492373]
[1730623532819,3.0566,163.64,163.61,3.0571]
[1730623533335,3.18,163.65,163.61,3.0571]
[1730623533528,6.2364,163.65,163.61,3.0571]
[1730623533732,6.58492373,163.68,163.62,6.58492373]
[1730623533932,6.58492373,163.68,163.58,3.18]
[1730623533933,3.0561,163.67,163.63,6.58492373]
[1730623535230,3.0561,163.67,163.64,3.0565]
[1730623535827,3.0561,163.67,163.63,9.64152373]
[1730623536034,3.18,163.68,163.63,9.64152373]
[1730623536228,3.0561,163.66,163.63,9.64152373]
[1730623536426,3.18,163.68,163.63,6.58492373]
[1730623537237,3.056,163.67,163.63,6.58492373]
[1730623537436,3.18,163.68,163.63,6.58492373]
[1730623538335,3.0563,163.66,163.63,6.58492373]
[1730623540731,9.76492373,163.69,163.63,6.58492373]
[1730623541753,3.056,163.67,163.64,3.0564]
[1730623542644,1.2842,163.71,163.66,6.58492373]
[1730623543743,3.0557,163.69,163.66,9.64092373]
[1730623547942,62.8992047,163.72,163.69,3.0555]
[1730623548143,59.8440047,163.72,163.71,6.58492373]
[1730623549135,9.62492373,163.76,163.71,6.58492373]
[1730623549329,9.62492373,163.78,163.73,6.58492373]
[1730623549930,6.58492373,163.78,163.73,6.58492373]
[1730623550132,3.8524,163.8,163.73,6.58492373]
[1730623550133,3.04,163.79,163.73,6.58492373]
[1730623550328,10.43732373,163.8,163.68,2.6268]
[1730623550329,9.15962373,163.8,163.68,2.6268]
[1730623550530,22.34290176,163.86,163.78,6.58492373]
[1730623550747,1.3548,163.86,163.81,6.58492373]
[1730623551243,3.0529,163.84,163.81,6.58492373]
[1730623551439,6.58492373,163.84,163.79,6.58492373]
[1730623552145,7.93972373,163.86,163.79,6.58492373]
[1730623553244,3.0531,163.83,163.79,6.58492373]
[1730623553936,3.9,163.85,163.79,6.58492373]
[1730623554134,3.0533,163.82,163.79,6.58492373]
[1730623554543,3.0522,163.88,163.82,3.0531]
[1730623554744,2.6446,163.89,163.87,6.58492373]
[1730623555047,3.052,163.88,163.87,6.58492373]
[1730623555251,9.19712373,163.93,163.87,6.58492373]
[1730623555652,3.0518,163.9,163.87,6.58492373]
[1730623556346,3.052,163.88,163.85,6.58492373]
[1730623556552,6.58492373,163.91,163.85,6.58492373]
[1730623558547,6.58492373,163.91,163.84,6.58492373]
[1730623558745,3.0524,163.86,163.84,6.58492373]
[1730623559346,6.58492373,163.89,163.84,6.58492373]
[1730623559550,6.58492373,163.89,163.82,6.58492373]
[1730623559551,3.0526,163.85,163.82,6.58492373]
[1730623561954,3.0524,163.86,163.82,6.58492373]
[1730623562259,6.58492373,163.88,163.81,6.58492373]
[1730623562443,5.16,163.88,163.82,6.58492373]
[1730623563438,5.16,163.88,163.84,6.58492373]
[1730623565260,8.2122,163.88,163.84,6.58492373]
[1730623566054,3.0525,163.86,163.84,6.58492373]
[1730623566653,3.0528,163.84,163.82,6.58492373]
[1730623567268,3.0526,163.85,163.82,6.58492373]
[1730623567457,5.16,163.88,163.82,6.58492373]
[1730623567659,5.16,163.88,163.84,6.58492373]
[1730623568463,5.16,163.88,163.83,6.56675133]
[1730623568661,3.0524,163.87,163.83,6.56675133]
[1730623569061,5.16,163.88,163.83,6.56675133]
[1730623570265,3.0524,163.86,163.83,6.56675133]
[1730623572967,3.0526,163.85,163.83,6.56675133]
[1730623574666,5.16,163.88,163.83,6.56675133]
[1730623574866,3.0524,163.86,163.83,6.56675133]
[1730623575371,3.0523,163.87,163.83,9.61965133]
[1730623575566,4.84,163.9,163.84,6.56675133]
[1730623575877,1.02513533,163.89,163.84,6.56675133]
[1730623576075,11.40675133,163.91,163.84,6.56675133]
[1730623576377,1.02513509,163.9,163.84,6.56675133]
[1730623576894,11.40675133,163.91,163.84,6.56675133]
[1730623577190,1.02513536,163.9,163.84,6.56675133]
[1730623577384,3.0521,163.88,163.84,9.61935133]
[1730623577978,6.56675133,163.91,163.8,2.6156]
[1730623578191,4.07693522,163.9,163.86,6.56675133]
[1730623578492,3.0518,163.9,163.86,6.56675133]
[1730623579192,3.0518,163.9,163.86,9.61905133]
[1730623581994,9.17895133,163.93,163.86,6.56675133]
[1730623582294,6.56675133,163.91,163.85,6.56675133]
[1730623583291,3.0524,163.87,163.85,6.56675133]
[1730623583482,6.56675133,163.9,163.83,6.56675133]
[1730623583689,6.56675133,163.9,163.8,2.6156]
[1730623583690,6.56675133,163.9,163.82,6.56675133]
[1730623583890,3.0527,163.85,163.82,6.56675133]
[1730623585485,3.0527,163.85,163.84,6.56675133]
[1730623585691,9.17895133,163.93,163.84,6.56675133]
[1730623585900,9.17895133,163.93,163.86,6.56675133]
[1730623587388,3.0521,163.88,163.86,6.56675133]
[1730623588485,3.0521,163.88,163.84,9.61945133]
[1730623588795,6.56675133,163.91,163.84,6.56675133]
[1730623588994,3.0524,163.86,163.83,6.56675133]
[1730623589386,6.56675133,163.89,163.83,6.56675133]
[1730623589592,3.0523,163.87,163.83,9.61965133]
[1730623589792,3.0523,163.87,163.85,6.56675133]
[1730623592902,3.0519,163.89,163.85,9.61915133]
[1730623593099,3.0519,163.89,163.86,6.56675133]
[1730623593402,6.56675133,163.93,163.86,6.56675133]
[1730623593595,12.71555133,163.94,163.86,6.56675133]
[1730623594203,3.0517,163.9,163.88,6.56675133]
[1730623594394,12.43555133,163.94,163.88,6.56675133]
[1730623595499,3.0517,163.9,163.88,6.56675133]
[1730623595812,4.56,163.94,163.88,6.56675133]
[1730623595993,3.0512,163.93,163.9,6.56675133]
[1730623597807,3.0512,163.93,163.9,9.61835133]
[1730623598395,3.0512,163.93,163.9,6.56675133]
[1730623599097,60.32024693,163.95,163.92,6.56675133]
[1730623599306,57.26944693,163.95,163.92,6.56675133]
[1730623599892,60.32014693,163.95,163.92,6.56675133]
[1730623600493,60.32014693,163.95,163.92,9.61805133]
[1730623600695,57.26944693,163.95,163.92,9.61805133]
[1730623601403,3.0504,163.97,163.93,9.61775133]
[1730623601701,3.0504,163.97,163.95,6.56675133]
[1730623602596,3.0502,163.98,163.95,6.56675133]
[1730623603311,1.02456027,163.97,163.95,6.56675133]
[1730623604907,1.02455473,163.96,163.95,6.56675133]
[1730623605111,1.02455473,163.97,163.95,6.56675133]
[1730623605305,1.02455473,163.96,163.95,6.56675133]
[1730623605508,1.02455473,163.97,163.95,6.56675133]
[1730623605817,1.02455473,163.96,163.88,8.5376]
[1730623606003,3.05,163.99,163.88,8.5376]
[1730623606317,1.02450872,163.98,163.95,3.0506]
[1730623607109,1.02450872,163.98,163.97,6.56675133]
[1730623607604,1.02450872,164.02,163.97,6.56675133]
[1730623607909,1.02450872,164.01,163.97,6.56675133]
[1730623608101,4.56,164.03,163.97,6.56675133]
[1730623608102,4.07430872,164.0,163.97,6.56675133]
[1730623608303,1.02450872,163.99,163.97,6.56675133]
[1730623608518,1.02450872,163.98,163.97,6.56675133]
[1730623608704,4.07470872,163.98,163.97,6.56675133]
[1730623609006,1.02450872,163.98,163.97,6.56675133]
[1730623609208,6.56675133,164.07,163.97,6.56675133]
[1730623609415,3.0499,164.0,163.99,6.56675133]
[1730623609706,4.07416012,164.0,163.99,6.56675133]
[1730623611498,3.0499,164.0,163.99,6.56675133]
[1730623612506,4.28,164.05,163.99,6.56675133]
[1730623612901,3.0496,164.01,163.99,6.56675133]
[1730623613305,6.56675133,164.03,163.97,6.56675133]
[1730623614701,3.0501,163.99,163.97,6.56218239]
[1730623621717,3.0501,163.99,163.9,4.28]
[1730623621718,3.0504,163.97,163.96,6.56218239]
[1730623621918,6.56218239,164.02,163.94,6.56218239]
[1730623622214,1.2721,164.01,163.94,6.56218239]
[1730623622617,7.83659604,164.01,163.94,6.56449604]
[1730623623008,3.0504,163.97,163.94,6.56449604]
[1730623624415,7.83659604,164.01,163.94,6.56449604]
[1730623624622,7.83659604,164.01,163.93,3.0511]
[1730623624623,3.0507,163.95,163.93,6.56449604]
[1730623625010,3.0503,163.98,163.93,6.56449604]
[1730623625222,10.84449604,163.99,163.93,6.56449604]
[1730623625905,4.28,163.99,163.93,6.56449604]
[1730623626323,3.0507,163.96,163.93,6.56449604]
[1730623627215,3.0507,163.96,163.93,9.61559604]
[1730623627422,6.9211,164.0,163.95,6.56449604]
[1730623628116,5.6255,164.0,163.95,6.56449604]
[1730623628313,4.28,164.0,163.95,6.56449604]
[1730623628510,4.28,164.0,163.88,3.9776]
[1730623628511,3.05,164.0,163.97,6.56449604]
[1730623628818,10.84449604,164.03,163.97,6.56449604]